bitfinex/quotes_BTCUSD_20250620
["timestamp","ask_amount","ask_price","bid_price","bid_amount"]
[1750444893871,0.30807089,103300.0,103290.0,0.0041]
[1750444894100,0.53072031,103300.0,103290.0,0.0041]
[1750444894329,5.82575031,103300.0,103290.0,0.0041]
[1750444894798,5.82575031,103300.0,103290.0,0.0021]
[1750444895007,5.82675031,103300.0,103290.0,0.0021]
[1750444895913,5.82675031,103300.0,103290.0,0.0001]
[1750444898231,5.79545031,103300.0,103290.0,0.0001]
[1750444901055,0.84042031,103300.0,103290.0,0.0001]
[1750444909902,0.93569016,103300.0,103290.0,0.0001]
[1750444911406,0.98101016,103300.0,103290.0,0.0001]
[1750444911629,5.93604016,103300.0,103290.0,0.0001]
[1750444911842,5.84077031,103300.0,103290.0,0.0001]
[1750444912492,0.85373031,103300.0,103290.0,0.0308]
[1750444912709,0.75845138,103300.0,103290.0,0.0308]
[1750444912922,0.75845138,103300.0,103290.0,0.0634]
[1750444913341,0.75845138,103300.0,103290.0,0.06453]
[1750444913563,0.54429138,103300.0,103290.0,0.25702958]
[1750444913786,0.54429138,103300.0,103290.0,0.32756319]
[1750444913787,0.55397164,103300.0,103290.0,0.32756319]
[1750444914005,0.55397164,103300.0,103290.0,0.32756328]
[1750444914639,0.55397164,103300.0,103290.0,0.31788237]
[1750444914862,0.55397164,103300.0,103290.0,0.30820127]
[1750444915065,0.36036023,103300.0,103290.0,0.31788256]
[1750444915280,0.56365161,103300.0,103290.0,0.31788256]
[1750444915483,0.56365161,103300.0,103290.0,0.32756375]
[1750444915684,0.56365161,103300.0,103290.0,0.33724485]
[1750444915893,0.55397164,103300.0,103290.0,0.33724485]
[1750444916115,0.54429138,103300.0,103290.0,0.32756375]
[1750444916334,0.53461084,103300.0,103290.0,0.27752243]
[1750444916541,0.53461084,103300.0,103290.0,0.06453]
[1750444918229,0.53461084,103300.0,103290.0,0.0634]
[1750444918435,0.53461084,103300.0,103290.0,0.0308]
[1750444919318,0.53461084,103300.0,103290.0,0.0614]
[1750444919540,0.53461084,103300.0,103290.0,0.06256]
[1750444920644,0.53461084,103300.0,103290.0,0.0614]
[1750444921328,0.53461084,103300.0,103290.0,0.06256]
[1750444922388,0.53461084,103300.0,103290.0,0.25618958]
[1750444922597,0.53461084,103300.0,103290.0,0.06256]
[1750444925238,0.53461084,103300.0,103290.0,0.26587105]
[1750444926086,0.53461084,103300.0,103290.0,0.27555243]
[1750444926535,0.19461084,103300.0,103290.0,0.11240457]
[1750444926960,0.19461084,103300.0,103290.0,0.31571553]
[1750444927175,0.19461084,103300.0,103290.0,0.11240457]
[1750444927404,0.19461084,103300.0,103290.0,0.30603415]
[1750444927609,0.19461084,103300.0,103290.0,0.11240457]
[1750444928046,0.19461084,103300.0,103290.0,0.11124457]
[1750444928248,0.20429128,103300.0,103290.0,0.32539663]
[1750444928471,0.21397144,103300.0,103290.0,0.32539672]
[1750444928921,0.20429128,103300.0,103290.0,0.12208604]
[1750444929429,0.19361084,103300.0,103290.0,0.11240457]
[1750444929636,0.19361084,103300.0,103290.0,0.06256]
[1750444930053,0.19361084,103300.0,103290.0,0.06356]
[1750444930535,0.19361084,103300.0,103290.0,0.06456]
[1750444932709,0.00967988,103300.0,103290.0,0.72251181]
[1750444932942,0.00967988,103300.0,103290.0,0.73219244]
[1750444933191,0.01935995,103300.0,103290.0,0.90071244]
[1750444933852,0.22857265,103310.0,103300.0,0.0844606]
[1750444933853,0.04465854,103310.0,103300.0,0.0844606]
[1750444934085,0.04465854,103310.0,103300.0,0.27923144]
[1750444934311,0.02529952,103310.0,103300.0,0.28891132]
[1750444934527,0.02908665,103310.0,103300.0,0.28891132]
[1750444934764,5e-05,103310.0,103300.0,0.62891132]
[1750444935008,0.00105,103310.0,103300.0,0.72419025]
[1750444936180,5e-05,103310.0,103300.0,0.72419025]
[1750444936628,0.00205,103310.0,103300.0,0.72519025]
[1750444937032,0.00205,103310.0,103300.0,0.72419025]
[1750444938066,0.01172885,103310.0,103300.0,0.72419025]
[1750444938274,0.00205,103310.0,103300.0,0.72419025]
[1750444939949,0.02140798,103310.0,103300.0,0.72419025]
[1750444940153,0.02140789,103310.0,103300.0,0.72419025]
[1750444940364,0.50528062,103330.0,103320.0,0.032]
[1750444940618,0.32751951,103330.0,103320.0,0.032]
[1750444941669,0.20325193,103320.0,103310.0,0.43577151]
[1750444942073,0.20315193,103320.0,103310.0,0.43577151]
[1750444942276,0.21283031,103320.0,103310.0,0.43577151]
[1750444942484,0.21283031,103320.0,103310.0,0.44545083]
[1750444942689,0.21283031,103320.0,103310.0,0.45512996]
[1750444942889,0.21292984,103320.0,103310.0,0.45512996]
[1750444943202,0.22260832,103320.0,103310.0,0.45512996]
[1750444943410,0.22260832,103320.0,103310.0,0.5304999]
[1750444943615,0.22260832,103320.0,103310.0,0.5324999]
[1750444943744,0.22260832,103320.0,103310.0,0.54217894]
[1750444943941,0.02903496,103320.0,103310.0,0.54317894]
[1750444944148,0.02903496,103320.0,103310.0,0.55285788]
[1750444944552,0.02903496,103320.0,103310.0,0.55295788]
[1750444944752,0.23228698,103320.0,103310.0,0.54327894]
[1750444945554,0.22260888,103320.0,103310.0,0.5335999]
[1750444946729,0.56260888,103320.0,103310.0,0.54327894]
[1750444947151,0.56260888,103320.0,103310.0,0.44855083]
[1750444948057,0.5529305,103320.0,103310.0,0.44855083]
[1750444948514,0.53357336,103320.0,103310.0,0.2356]
[1750444948913,0.53357336,103320.0,103310.0,0.23444]
[1750444949251,0.53357336,103320.0,103310.0,0.4280321]
[1750444949464,0.53357336,103320.0,103310.0,0.44739121]
[1750444949915,0.53357336,103320.0,103310.0,0.23444]
[1750444950087,0.53357336,103320.0,103310.0,0.4377117]
[1750444950286,0.53357336,103320.0,103310.0,0.44739121]
[1750444950490,0.53357336,103320.0,103310.0,0.53371871]
[1750444950711,0.53357336,103320.0,103310.0,0.54455794]
[1750444951683,0.53357336,103320.0,103310.0,0.45823062]
[1750444951897,0.53357336,103320.0,103310.0,0.0351]
[1750444952101,5.55404336,103320.0,103310.0,0.0031]
[1750444952314,5.84076477,103320.0,103310.0,0.0031]
[1750444952535,5.88793972,103320.0,103310.0,0.0031]
[1750444952742,5.88793972,103320.0,103310.0,0.00232161]
[1750444952743,5.99775042,103320.0,103310.0,0.00232161]
[1750444952953,6.02670635,103320.0,103310.0,0.0001]
[1750444953202,6.02670286,103320.0,103310.0,0.0001]
[1750444954234,5.99774693,103320.0,103310.0,0.0001]
[1750444955115,5.97965874,103320.0,103310.0,0.0001]
[1750444955434,5.99774722,103320.0,103310.0,0.0001]
[1750444955556,5.99874722,103320.0,103310.0,0.0001]
[1750444956186,5.99874493,103320.0,103310.0,0.0001]
[1750444959110,5.99874225,103320.0,103310.0,0.0001]
[1750444959315,0.54331049,103290.0,103280.0,0.25463273]
[1750444959549,0.54331049,103290.0,103280.0,0.3014092]
[1750444959757,0.56267297,103290.0,103280.0,0.3014092]
[1750444959929,0.56267297,103290.0,103280.0,0.351673]
[1750444959930,0.57235435,103290.0,103280.0,0.351673]
[1750444960343,0.37872477,103290.0,103280.0,0.351673]
[1750444960546,0.56267344,103290.0,103280.0,0.3333092]
[1750444961149,0.56267344,103290.0,103280.0,0.35267309]
[1750444961339,0.56267344,103290.0,103280.0,0.34415124]
[1750444961703,0.56267344,103290.0,103280.0,0.34515124]
[1750444961896,0.35936248,103290.0,103280.0,0.34515124]
[1750444962125,0.36904339,103290.0,103280.0,0.354833]
[1750444962342,0.35936154,103290.0,103280.0,0.354833]
[1750444962554,0.36904264,103290.0,103280.0,0.354833]
[1750444963162,0.35936154,103290.0,103280.0,0.354833]
[1750444964218,0.35936145,103290.0,103280.0,0.354833]
[1750444964419,0.34968063,103290.0,103280.0,0.354833]
[1750444964677,0.35936154,103290.0,103280.0,0.354833]
[1750444964878,0.35936145,103290.0,103280.0,0.354833]
[1750444965289,0.36904246,103290.0,103280.0,0.354833]
[1750444965484,0.35936145,103290.0,103280.0,0.354833]
[1750444965686,0.36904246,103290.0,103280.0,0.354833]
[1750444965899,0.35936145,103290.0,103280.0,0.354833]
[1750444966090,0.36904246,103290.0,103280.0,0.354833]
[1750444967302,0.36904246,103290.0,103280.0,0.523033]
[1750444967703,0.35936145,103290.0,103280.0,0.523033]
[1750444967907,0.36904246,103290.0,103280.0,0.523033]
[1750444968051,0.35936145,103290.0,103280.0,0.523033]
[1750444968256,0.36904236,103290.0,103280.0,0.523033]
[1750444969083,0.37872337,103290.0,103280.0,0.523033]
[1750444969508,0.38840466,103290.0,103280.0,0.523033]
[1750444969742,0.37872337,103290.0,103280.0,0.523033]
[1750444969931,0.58203499,103290.0,103280.0,0.523033]
[1750444970255,0.38840541,103290.0,103280.0,0.523033]
[1750444970755,0.36904274,103290.0,103280.0,0.523033]
[1750444971766,0.37872403,103290.0,103280.0,0.523033]
[1750444971971,0.55299188,103290.0,103280.0,0.2790106]
[1750444972229,0.56267326,103290.0,103280.0,0.29837477]
[1750444972420,0.56267326,103290.0,103280.0,0.30805671]
[1750444972634,0.56267326,103290.0,103280.0,0.30689671]
[1750444972849,0.56267326,103290.0,103280.0,0.2778506]
[1750444973063,0.54331096,103290.0,103280.0,0.0329]
[1750444973269,0.54455096,103290.0,103280.0,0.23623074]
[1750444973700,0.54455096,103290.0,103280.0,0.24591306]
[1750444974115,0.54455096,103290.0,103280.0,0.32254607]
[1750444974529,0.55423206,103290.0,103280.0,0.37450986]
[1750444974756,0.56267353,103290.0,103280.0,0.37450986]
[1750444974969,0.56267353,103290.0,103280.0,0.36482801]
[1750444975378,0.54331105,103290.0,103280.0,0.35514607]
[1750444975589,0.54449105,103290.0,103280.0,0.35514607]
[1750444976034,0.53480958,103290.0,103280.0,0.35514607]
[1750444976455,0.53480958,103290.0,103280.0,0.36482811]
[1750444977698,0.53480958,103290.0,103280.0,0.36492811]
[1750444978929,0.54449087,103290.0,103280.0,0.37461005]
[1750444979135,0.54449087,103290.0,103280.0,0.37460949]
[1750444979556,0.37022368,103290.0,103280.0,0.37460949]
[1750444979796,0.56385326,103290.0,103280.0,0.37460949]
[1750444979985,0.57353473,103290.0,103280.0,0.37460949]
[1750444981223,0.57353473,103290.0,103280.0,0.3552457]
[1750444981425,0.56385372,103290.0,103280.0,0.34556366]
[1750444981634,0.55417243,103290.0,103280.0,0.34556366]
[1750444982670,0.55417243,103290.0,103280.0,0.24601287]
[1750444982879,0.55417243,103290.0,103280.0,0.287495]
[1750444983725,0.55299243,103290.0,103280.0,0.287495]
[1750444984332,0.55299243,103290.0,103280.0,0.29717704]
[1750444984546,0.55299243,103290.0,103280.0,0.30685898]
[1750444984754,0.55299243,103290.0,103280.0,0.37384953]
[1750444985164,0.55299243,103290.0,103280.0,0.36416721]
[1750444985375,0.37872421,103290.0,103280.0,0.3738486]
[1750444985798,0.03872421,103290.0,103280.0,0.3738486]
[1750444987180,0.04840559,103290.0,103280.0,0.3738486]
[1750444987407,0.24203582,103290.0,103280.0,0.36416684]
[1750444988305,0.23235491,103290.0,103280.0,0.32543888]
[1750444988531,0.22267372,103290.0,103280.0,0.34480323]
[1750444988731,0.22267372,103290.0,103280.0,0.35448527]
[1750444989334,0.22267372,103290.0,103280.0,0.36416721]
[1750444989533,0.22267372,103290.0,103280.0,0.37384897]
[1750444989534,0.0193623,103290.0,103280.0,0.37384897]
[1750444989732,0.22267335,103290.0,103280.0,0.37384897]
[1750444989893,0.22267335,103290.0,103280.0,0.36416721]
[1750444990329,0.22267335,103290.0,103280.0,0.34480323]
[1750444990530,0.21299234,103290.0,103280.0,0.3351211]
[1750444990736,0.21417234,103290.0,103280.0,0.3351211]
[1750444991267,0.20449105,103290.0,103280.0,0.3033211]
[1750444991670,0.20449105,103290.0,103280.0,0.35378527]
[1750444992500,0.20331105,103290.0,103280.0,0.35378527]
[1750444993744,0.20331105,103290.0,103280.0,0.36346721]
[1750444994551,0.20331105,103290.0,103280.0,0.53146721]
[1750444994753,0.20331105,103290.0,103280.0,0.36346721]
[1750444994977,0.54331105,103290.0,103280.0,0.34410323]
[1750444995188,0.54331105,103290.0,103280.0,0.51210323]
[1750444995387,0.54331105,103290.0,103280.0,0.34410323]
[1750444995584,0.54331105,103290.0,103280.0,0.51210323]
[1750444995888,0.53362958,103290.0,103280.0,0.43543055]
[1750444996308,0.53362958,103290.0,103280.0,0.27711268]
[1750444996512,0.53362958,103290.0,103280.0,0.44511268]
[1750444996864,0.53362958,103290.0,103280.0,0.2321]
[1750444997063,0.59664453,103290.0,103280.0,0.0021]
[1750444997267,0.81789331,103290.0,103280.0,0.0021]
[1750444997479,0.84113217,103290.0,103280.0,0.0021]
[1750444997686,0.87021817,103290.0,103280.0,0.0021]
[1750444997962,5.82524817,103290.0,103280.0,0.0021]
[1750444998164,5.82524817,103290.0,103280.0,0.0011]
[1750444998537,5.84340723,103290.0,103280.0,0.0011]
[1750444998786,5.84340723,103290.0,103280.0,0.0001]
[1750444999778,5.82524817,103290.0,103280.0,0.0001]
[1750445000335,5.74811587,103290.0,103280.0,0.0001]
[1750445000522,5.69927832,103290.0,103280.0,0.0001]
[1750445000719,0.83877053,103290.0,103280.0,0.0001]
[1750445002633,0.80567053,103290.0,103280.0,0.0309]
[1750445002785,0.83837053,103290.0,103280.0,0.0309]
[1750445003604,0.80567053,103290.0,103280.0,0.0309]
[1750445004490,0.35936248,103290.0,103280.0,0.31380286]
[1750445004811,0.23237238,103300.0,103280.0,0.31499165]
[1750445005095,0.01936192,103290.0,103280.0,0.28419165]
[1750445005256,0.02904246,103290.0,103280.0,0.28419165]
[1750445005458,0.01936145,103290.0,103280.0,0.28419165]
[1750445005846,0.01936145,103290.0,103280.0,0.31699165]
[1750445006261,0.01936145,103290.0,103280.0,0.31699295]
[1750445006262,0.03872393,103290.0,103280.0,0.31699295]
[1750445006441,0.03872393,103290.0,103280.0,0.29817695]
[1750445006673,0.03872393,103290.0,103280.0,0.2884951]
[1750445006882,0.21299206,103290.0,103280.0,0.27013065]
[1750445007303,0.21299206,103290.0,103280.0,0.27981278]
[1750445007716,0.21299206,103290.0,103280.0,0.34799052]
[1750445007921,0.21299206,103290.0,103280.0,0.35767246]
[1750445008125,0.21299206,103290.0,103280.0,0.34799052]
[1750445008331,0.21299206,103290.0,103280.0,0.34799061]
[1750445008744,0.21299206,103290.0,103280.0,0.27113065]
[1750445008959,0.21415206,103290.0,103280.0,0.27113074]
[1750445009163,0.21415206,103290.0,103280.0,0.28081306]
[1750445009372,0.21415206,103290.0,103280.0,0.29049528]
[1750445009575,0.21415206,103290.0,103280.0,0.22854833]
[1750445009781,0.20447096,103290.0,103280.0,0.22854833]
[1750445010206,0.20447096,103290.0,103280.0,0.23823074]
[1750445010409,0.20447096,103290.0,103280.0,0.22854833]
[1750445011346,0.27837914,103290.0,103280.0,0.0021]
[1750445011535,0.23547096,103290.0,103280.0,0.0021]
[1750445011898,0.23547096,103290.0,103280.0,0.19574833]
[1750445012293,0.23547096,103290.0,103280.0,0.0021]
[1750445012496,0.23547096,103290.0,103280.0,0.0011]
[1750445014524,0.52872989,103290.0,103280.0,0.0011]
[1750445014721,0.60096396,103290.0,103280.0,0.0011]
[1750445015199,5.48375989,103290.0,103280.0,0.0011]
[1750445015401,5.48375989,103290.0,103280.0,0.0001]
[1750445016512,5.51348526,103290.0,103280.0,0.0001]
[1750445016713,5.68560526,103290.0,103280.0,0.0001]
[1750445017065,5.65550526,103290.0,103280.0,0.0001]
[1750445018653,5.75077511,103290.0,103280.0,0.0001]
[1750445019065,5.77986111,103290.0,103280.0,0.0001]
[1750445019606,5.4812803,103290.0,103280.0,0.0001]
[1750445019813,5.67490988,103290.0,103280.0,0.0001]
[1750445024644,5.54747095,103290.0,103280.0,0.0001]
[1750445024880,0.56451495,103290.0,103280.0,0.0628]
[1750445025326,0.56451495,103290.0,103280.0,0.0308]
[1750445026492,0.59621495,103290.0,103280.0,0.0001]
[1750445027554,0.20333074,103280.0,103270.0,0.28527653]
[1750445027687,0.20333074,103280.0,103270.0,0.33427006]
[1750445027888,0.20333074,103280.0,103270.0,0.32458699]
[1750445028088,0.20333074,103280.0,103270.0,0.31490373]
[1750445028330,0.20333074,103280.0,103270.0,0.32458689]
[1750445028721,0.20333074,103280.0,103270.0,0.32558689]
[1750445029498,0.20333074,103280.0,103270.0,0.33526996]
[1750445029699,0.20333074,103280.0,103270.0,0.33626996]
[1750445031107,0.20333074,103280.0,103270.0,0.31690373]
[1750445031311,0.20333074,103280.0,103270.0,0.32658699]
[1750445031696,0.20333074,103280.0,103270.0,0.33627015]
[1750445032254,0.20333074,103280.0,103270.0,0.34595322]
[1750445032880,0.20333074,103280.0,103270.0,0.11355353]
[1750445033087,0.20333074,103280.0,103270.0,0.31690396]
[1750445033538,0.20449074,103280.0,103270.0,0.32658722]
[1750445033872,0.20449074,103280.0,103270.0,0.33627038]
[1750445036246,0.20333074,103280.0,103270.0,0.34595345]
[1750445036867,0.20333074,103280.0,103270.0,0.35563633]
[1750445037318,0.21301287,103280.0,103270.0,0.35563577]
[1750445037786,0.21301287,103280.0,103270.0,0.3362701]
[1750445038225,0.21301287,103280.0,103270.0,0.34595289]
[1750445038442,0.21301287,103280.0,103270.0,0.31690387]
[1750445038660,0.21424287,103280.0,103270.0,0.31690387]
[1750445039336,0.21301287,103280.0,103270.0,0.32658703]
[1750445039559,0.21301287,103280.0,103270.0,0.33747991]
[1750445040235,0.21301287,103280.0,103270.0,0.3471627]
[1750445041175,0.55299224,103290.0,103280.0,0.26664055]
[1750445041401,0.56267296,103290.0,103280.0,0.26664055]
[1750445041616,0.55422224,103290.0,103280.0,0.0621]
[1750445041860,0.55422224,103290.0,103280.0,0.26543074]
[1750445042090,0.55422224,103290.0,103280.0,0.27511306]
[1750445042981,0.54454105,103290.0,103280.0,0.25574833]
[1750445043415,0.54454105,103290.0,103280.0,0.0621]
[1750445043641,0.54454105,103290.0,103280.0,0.25574833]
[1750445043873,0.54454105,103290.0,103280.0,0.0621]
[1750445044333,0.54454105,103290.0,103280.0,0.25574833]
[1750445044564,0.54454105,103290.0,103280.0,0.26543065]
[1750445044776,0.54454105,103290.0,103280.0,0.27511287]
[1750445044995,0.54454105,103290.0,103280.0,0.26543065]
[1750445045443,0.54454105,103290.0,103280.0,0.32178925]
[1750445045727,0.54331105,103290.0,103280.0,0.32278925]
[1750445045950,0.54331105,103290.0,103280.0,0.33247138]
[1750445046580,0.54331105,103290.0,103280.0,0.286795]
[1750445047243,0.54331105,103290.0,103280.0,0.27711287]
[1750445047458,0.54331105,103290.0,103280.0,0.26743074]
[1750445047671,0.54331105,103290.0,103280.0,0.27711306]
[1750445048367,0.54331105,103290.0,103280.0,0.28679528]
[1750445048840,0.34968091,103290.0,103280.0,0.38376446]
[1750445049073,0.5723536,103290.0,103280.0,0.3740827]
[1750445049293,0.5723536,103290.0,103280.0,0.26743074]
[1750445049294,0.56267353,103290.0,103280.0,0.26743074]
[1750445049531,0.55422243,103290.0,103280.0,0.20022]
[1750445051349,0.55422243,103290.0,103280.0,0.0327]
[1750445055357,0.55422243,103290.0,103280.0,0.22634833]
[1750445055582,0.55422243,103290.0,103280.0,0.0659]
[1750445056510,0.55422243,103290.0,103280.0,0.25954833]
[1750445056984,0.55422243,103290.0,103280.0,0.0659]
[1750445057946,0.55422243,103290.0,103280.0,0.26923074]
[1750445058157,0.55422243,103290.0,103280.0,0.27891306]
[1750445058336,0.55422243,103290.0,103280.0,0.28859528]
[1750445058794,0.54454105,103290.0,103280.0,0.07558241]
[1750445059005,0.54454105,103290.0,103280.0,0.0659]
[1750445059903,0.54454105,103290.0,103280.0,0.0327]
[1750445060551,0.83891998,103290.0,103280.0,0.002]
[1750445060783,5.82394998,103290.0,103280.0,0.002]
[1750445061246,5.84713198,103290.0,103280.0,0.002]
[1750445061666,5.81713198,103290.0,103280.0,0.001]
[1750445061820,5.88921983,103290.0,103280.0,0.001]
[1750445062658,0.71071105,103290.0,103280.0,0.22644833]
[1750445062856,0.58819105,103290.0,103280.0,0.26753055]
[1750445063722,0.58819105,103290.0,103280.0,0.0642]
[1750445064064,0.58942105,103290.0,103280.0,0.0642]
[1750445064297,0.58942105,103290.0,103280.0,0.0652]
[1750445064499,0.58942105,103290.0,103280.0,0.0662]
[1750445064709,0.63755279,103290.0,103280.0,0.0662]
[1750445065737,0.58942105,103290.0,103280.0,0.0662]
[1750445066166,0.58942105,103290.0,103280.0,0.26953055]
[1750445066389,0.58942105,103290.0,103280.0,0.0662]
[1750445066795,0.58942105,103290.0,103280.0,0.26953074]
[1750445066921,0.53485958,103290.0,103280.0,0.0662]
[1750445067118,0.57953958,103290.0,103280.0,0.0338]
[1750445067554,0.61203958,103290.0,103280.0,0.002]
[1750445067783,0.57953958,103290.0,103280.0,0.0331]
[1750445068686,0.61203958,103290.0,103280.0,0.002]
[1750445069715,0.61203958,103290.0,103280.0,0.001]
[1750445070023,5.59896958,103290.0,103280.0,0.001]
[1750445070228,5.69423943,103290.0,103280.0,0.001]
[1750445070426,5.78951836,103290.0,103280.0,0.001]
[1750445071197,0.56271572,103270.0,103260.0,0.45427632]
[1750445071395,0.56271572,103270.0,103260.0,0.29672014]
[1750445071587,0.56271572,103270.0,103260.0,0.30640386]
[1750445072843,0.56271572,103270.0,103260.0,0.29772014]
[1750445073052,0.56384572,103270.0,103260.0,0.29772014]
[1750445073673,0.56384572,103270.0,103260.0,0.29872014]
[1750445073831,0.56384572,103270.0,103260.0,0.28903632]
[1750445074033,0.55416312,103270.0,103260.0,0.28903632]
[1750445075592,0.54448024,103270.0,103260.0,0.27935241]
[1750445075828,0.54819597,103270.0,103260.0,0.44655432]
[1750445076598,0.54819597,103270.0,103260.0,0.45623842]
[1750445076855,0.53479708,103270.0,103260.0,0.45623842]
[1750445077111,0.56384666,103270.0,103260.0,0.47560615]
[1750445077337,0.55416369,103270.0,103260.0,0.45623842]
[1750445077777,0.55416369,103270.0,103260.0,0.46592243]
[1750445078256,0.55416369,103270.0,103260.0,0.47560634]
[1750445078481,0.55416369,103270.0,103260.0,0.27935413]
[1750445078709,0.55416369,103270.0,103260.0,0.44651413]
[1750445079166,0.55416369,103270.0,103260.0,0.45619814]
[1750445079411,0.55416369,103270.0,103260.0,0.46588205]
[1750445079624,0.36049661,103270.0,103260.0,0.47556587]
[1750445079838,0.36049661,103270.0,103260.0,0.47556531]
[1750445080058,0.34968279,103270.0,103260.0,0.47678531]
[1750445080287,0.36904883,103270.0,103260.0,0.47678531]
[1750445080501,0.37873143,103270.0,103260.0,0.47678531]
[1750445081886,0.37873133,103270.0,103260.0,0.47678531]
[1750445083751,0.3884144,103270.0,103260.0,0.47678531]
[1750445083981,0.38841487,103270.0,103260.0,0.47678531]
[1750445084179,0.37873171,103270.0,103260.0,0.47678531]
[1750445084370,0.36904864,103270.0,103260.0,0.47678531]
[1750445084964,0.3787318,103270.0,103260.0,0.47678531]
[1750445085584,0.36904864,103270.0,103260.0,0.47678531]
[1750445085903,0.3593653,103270.0,103260.0,0.47678531]
[1750445087299,0.3593653,103270.0,103260.0,0.54384374]
[1750445088122,0.34,103270.0,103260.0,0.63912267]
[1750445088347,0.34,103270.0,103260.0,1.10349265]
[1750445088575,0.45248712,103290.0,103280.0,0.28819445]
[1750445088734,0.42340412,103290.0,103280.0,0.28819445]
[1750445089537,0.42340402,103290.0,103280.0,0.28819445]
[1750445090504,0.42340402,103290.0,103280.0,0.28919445]
[1750445091364,0.42340402,103290.0,103280.0,0.31680593]
[1750445091581,0.34,103290.0,103280.0,0.41330486]
[1750445091799,0.35936145,103290.0,103280.0,0.41330486]
[1750445091968,0.37872355,103290.0,103280.0,0.41208486]
[1750445092182,0.36904236,103290.0,103280.0,0.41208486]
[1750445092551,0.36904236,103290.0,103280.0,0.38347338]
[1750445092745,0.37872355,103290.0,103280.0,0.38347338]
[1750445092948,0.36904236,103290.0,103280.0,0.38347338]
[1750445093195,0.35936145,103290.0,103280.0,0.38347338]
[1750445093430,0.34,103290.0,103280.0,0.38469338]
[1750445093660,0.34,103290.0,103280.0,0.46116427]
[1750445094372,0.34968082,103290.0,103280.0,0.46116427]
[1750445094558,0.34,103290.0,103280.0,0.46116427]
[1750445094923,0.34968082,103290.0,103280.0,0.46116427]
[1750445095370,0.35936183,103290.0,103280.0,0.46116427]
[1750445095593,0.35936183,103290.0,103280.0,0.38347338]
[1750445096048,0.34968082,103290.0,103280.0,0.38347338]
[1750445096255,0.35936183,103290.0,103280.0,0.38347338]
[1750445096669,0.36904302,103290.0,103280.0,0.38347338]
[1750445096942,0.5626726,103290.0,103280.0,0.35442726]
[1750445097149,0.57355389,103290.0,103280.0,0.27851269]
[1750445097331,0.56387307,103290.0,103280.0,0.288195]
[1750445097686,0.56387307,103290.0,103280.0,0.288295]
[1750445097889,0.56387307,103290.0,103280.0,0.29797704]
[1750445100482,0.56387307,103290.0,103280.0,0.30765898]
[1750445100782,0.56387307,103290.0,103280.0,0.29797704]
[1750445101035,0.55419206,103290.0,103280.0,0.22684833]
[1750445101298,0.55419206,103290.0,103280.0,0.23653074]
[1750445101567,0.65876712,103290.0,103280.0,0.0001]
[1750445101778,0.77481087,103290.0,103280.0,0.0001]
[1750445102615,0.80371399,103290.0,103280.0,0.0001]
[1750445104392,0.63691399,103290.0,103280.0,0.0001]
[1750445104624,0.34968072,103290.0,103280.0,0.29637648]
[1750445104826,0.37872364,103290.0,103280.0,0.3474891]
[1750445105027,0.34968072,103290.0,103280.0,0.5142091]
[1750445105446,0.03875869,103300.0,103290.0,0.28657288]
[1750445105628,0.19360895,103310.0,103300.0,0.26719128]
[1750445105629,0.37967055,103310.0,103300.0,0.26719128]
[1750445105827,0.38087102,103310.0,103300.0,0.22511084]
[1750445106110,0.01935854,103310.0,103300.0,0.28605114]
[1750445106976,0.02903805,103310.0,103300.0,0.28605114]
[1750445107283,0.02903805,103310.0,103300.0,0.33274843]
[1750445107468,0.01935854,103310.0,103300.0,0.28805114]
[1750445108095,0.02903814,103310.0,103300.0,0.27837126]
[1750445108305,0.22263024,103310.0,103300.0,0.27837126]
[1750445108521,0.56383024,103310.0,103300.0,0.27837126]
[1750445109147,0.56383024,103310.0,103300.0,0.24647164]
[1750445109953,0.5444717,103310.0,103300.0,0.24647182]
[1750445110173,0.5444717,103310.0,103300.0,0.26583243]
[1750445110365,0.55415102,103310.0,103300.0,0.2755124]
[1750445110767,0.55295102,103310.0,103300.0,0.2755124]
[1750445110967,0.35935892,103310.0,103300.0,0.3074124]
[1750445111223,0.36903777,103310.0,103300.0,0.30741174]
[1750445112714,0.37871728,103310.0,103300.0,0.30741174]
[1750445112919,0.36903777,103310.0,103300.0,0.30741174]
[1750445113120,0.57230947,103310.0,103300.0,0.28805189]
[1750445113324,0.57230947,103310.0,103300.0,0.29773205]
[1750445113755,0.57350947,103310.0,103300.0,0.30741212]
[1750445114162,0.36903702,103310.0,103300.0,0.46357655]
[1750445114370,0.37871643,103310.0,103300.0,0.46357655]
[1750445114572,0.38839603,103310.0,103300.0,0.37365019]
[1750445114773,0.38839594,103310.0,103300.0,0.39301004]
[1750445114976,0.36903702,103310.0,103300.0,0.39301004]
[1750445115187,0.01935779,103310.0,103300.0,0.39301004]
[1750445116086,0.4058561,103320.0,103310.0,0.23457151]
[1750445116543,0.4058561,103320.0,103310.0,0.2345717]
[1750445116779,0.4058561,103320.0,103310.0,0.24425121]
[1750445117004,0.4058561,103320.0,103310.0,0.24401924]
[1750445117233,0.4058561,103320.0,103310.0,0.28327699]
[1750445117686,0.7758561,103320.0,103310.0,0.25197699]
[1750445118327,0.7758561,103320.0,103310.0,0.26165659]
[1750445118996,0.7758561,103320.0,103310.0,0.31231542]
[1750445118997,0.76521286,103320.0,103310.0,0.31231542]
[1750445119207,0.76513286,103320.0,103310.0,0.31231551]
[1750445119843,0.75545476,103320.0,103310.0,0.3026361]
[1750445120076,0.75545476,103320.0,103310.0,0.24401924]
[1750445120388,0.75545476,103320.0,103310.0,0.25369865]
[1750445120812,0.75545476,103320.0,103310.0,0.27305672]
[1750445120813,0.40503648,103320.0,103310.0,0.27305672]
[1750445121029,0.7747685,103320.0,103310.0,0.26337778]
[1750445121265,0.35935648,103320.0,103310.0,0.33846064]
[1750445121491,0.77476841,103320.0,103310.0,0.29427788]
[1750445121729,0.78444707,103320.0,103310.0,0.30395701]
[1750445122178,0.78444707,103320.0,103310.0,0.27491924]
[1750445122428,0.77476897,103320.0,103310.0,0.24401924]
[1750445123061,0.76509059,103320.0,103310.0,0.23433973]
[1750445123286,0.76509059,103320.0,103310.0,0.24401924]
[1750445123492,0.76509059,103320.0,103310.0,0.25369865]
[1750445123950,0.76509059,103320.0,103310.0,0.29427778]
[1750445124405,0.34967801,103320.0,103310.0,0.38000756]
[1750445124631,0.23824062,103330.0,103320.0,0.27513041]
[1750445124858,0.23824119,103330.0,103320.0,0.23455193]
[1750445125082,0.57824119,103330.0,103320.0,0.24423031]
[1750445125526,0.57824119,103330.0,103320.0,0.24423041]
[1750445125728,0.57824119,103330.0,103320.0,0.26284958]
[1750445125943,0.56856374,103330.0,103320.0,0.24349253]
[1750445126157,0.56856374,103330.0,103320.0,0.25317101]
[1750445127218,0.56856374,103330.0,103320.0,0.26284939]
[1750445127435,0.61304374,103330.0,103320.0,0.27252768]
[1750445127644,0.61304374,103330.0,103320.0,0.26284939]
[1750445128506,0.40383414,103330.0,103320.0,0.29408652]
[1750445128704,0.41351149,103330.0,103320.0,0.29526652]